[Event "European Online Club-ch-I 2021"]
[Site "Online"]
[Date "2021.03.27"]
[Round "3.2"]
[White "Van Hoolandt, Patrick"]
[Black "Mchedlishvili, Mikheil"]
[Result "0-1"]
[ECO "A70"]
[WhiteElo "2017"]
[BlackElo "2570"]
[Annotator "ChessBase"]
[PlyCount "46"]
[EventDate "2021.03.27"]
[EventType "team-tourn"]
[EventCountry "NET"]
[SourceTitle "playchess.com"]
[Source "ChessBase"]
[SourceQuality "1"]
[TimeControl "900+5"]

1. d4 {[%emt 0:00:00]} Nf6 {[%emt 0:00:07]} 2. c4 {[%emt 0:00:03]} c5 {[%emt 0:00:02]} 3. d5 {[%emt 0:00:02]} g6 {[%emt 0:00:09]} 4. Nc3 {[%emt 0:00:03]} Bg7 {[%emt 0:00:02]} 5. e4 {[%emt 0:00:03]} d6 {[%emt 0:00:01]} 6. Bd3 {[%emt 0:00:05]} O-O {[%emt 0:00:04]} 7. Nf3 {[%emt 0:00:02]} e6 {[%emt 0:00:44]} 8. h3 {[%emt 0:00:03]} exd5 {[%emt 0:00:38]} 9. cxd5 {[%emt 0:00:00]} Nbd7 {[%emt 0:00:03]} 10. O-O {[%emt 0:00:07]} Re8 {[%emt 0:00:11]} 11. Bf4 {[%emt 0:00:06]} c4 {[%emt 0:00:07]} 12. Bc2 {[%emt 0:00:03]} Nc5 {[%emt 0:00:10]} 13. Re1 {[%emt 0:00:05]} Qb6 {[%emt 0:00:25]} 14. Rb1 {[%emt 0:00:19]} Bd7 {[%emt 0:00:06]} 15. Bh2 {[%emt 0:01:29]} Rad8 {[%emt 0:01:08]} 16. e5 {[%emt 0:00:13]} dxe5 {[%emt 0:00:09]} 17. Rxe5 {[%emt 0:00:11]} Bc8 {[%emt 0:00:22]} 18. Qe2 {[%emt 0:01:09]} Rxe5 {[%emt 0:00:10]} 19. Nxe5 {[%emt 0:00:02]} Nxd5 {[%emt 0:01:05]} 20. Qxc4 {[%emt 0:00:08]} Be6 {[%emt 0:00:29]} 21. Qh4 {[%emt 0:00:25]} Nxc3 {[%emt 0:00:33]} 22. bxc3 {[%emt 0:00:04]} Qxb1+ {[%emt 0:00:06]} 23. Bxb1 {[%emt 0:00:11]} Rd1# {[%emt 0:00:03]} 0-1

[Event "European Online Club-ch-I 2021"]
[Site "Online"]
[Date "2021.03.27"]
[Round "3.3"]
[White "Ibarra Jerez, Jose Carlos"]
[Black "Meylan, Pierre"]
[Result "1-0"]
[ECO "B06"]
[WhiteElo "2553"]
[BlackElo "2053"]
[Annotator "ChessBase"]
[PlyCount "63"]
[EventDate "2021.03.27"]
[EventType "team-tourn"]
[EventCountry "NET"]
[SourceTitle "playchess.com"]
[Source "ChessBase"]
[SourceQuality "1"]
[TimeControl "900+5"]

1. e4 {[%emt 0:00:00]} c6 {[%emt 0:00:04]} 2. Nf3 {[%emt 0:00:07]} d5 {[%emt 0:00:03]} 3. d3 {[%emt 0:00:02]} g6 {[%emt 0:00:30]} 4. e5 {[%emt 0:00:17]} Bg7 {[%emt 0:00:22]} 5. d4 {[%emt 0:00:12]} c5 {[%emt 0:01:30]} 6. c3 {[%emt 0:00:11]} Nc6 {[%emt 0:00:23]} 7. Bb5 {[%emt 0:00:10]} Bg4 {[%emt 0:01:31]} 8. Nbd2 {[%emt 0:00:18]} cxd4 {[%emt 0:00:49]} 9. cxd4 {[%emt 0:00:05]} e6 {[%emt 0:00:29]} 10. Bxc6+ {[%emt 0:00:07]} bxc6 {[%emt 0:00:05]} 11. O-O {[%emt 0:00:02]} Ne7 {[%emt 0:00:39]} 12. h3 {[%emt 0:00:24]} Bxf3 {[%emt 0:01:03]} 13. Nxf3 {[%emt 0:00:00]} O-O {[%emt 0:00:17]} 14. b3 {[%emt 0:00:13]} c5 {[%emt 0:00:39]} 15. dxc5 {[%emt 0:00:18]} Qc7 {[%emt 0:00:36]} 16. Bg5 {[%emt 0:02:36]} Nc6 {[%emt 0:00:23]} 17. Bf6 {[%emt 0:00:43]} Nxe5 {[%emt 0:00:59]} 18. Bxg7 {[%emt 0:00:04]} Kxg7 {[%emt 0:00:56]} 19. Qd4 {[%emt 0:00:43]} f6 {[%emt 0:00:06]} 20. Nxe5 {[%emt 0:00:04]} fxe5 {[%emt 0:00:09]} 21. Qc3 {[%emt 0:00:08]} Rf4 {[%emt 0:00:35]} 22. Rae1 {[%emt 0:00:29]} d4 {[%emt 0:00:24]} 23. Qc4 {[%emt 0:00:12]} Rc8 {[%emt 0:01:17]} 24. Qxe6 {[%emt 0:00:20]} Qxc5 {[%emt 0:00:08]} 25. Rxe5 {[%emt 0:00:33]} Qc2 {[%emt 0:00:17]} 26. Qd7+ {[%emt 0:00:08]} Kh6 {[%emt 0:01:14]} 27. Re7 {[%emt 0:00:11]} Qf5 {[%emt 0:00:47]} 28. Rxh7+ {[%emt 0:00:04]} Kg5 {[%emt 0:00:04]} 29. g3 {[%emt 0:01:23]} Rxf2 {[%emt 0:00:31]} 30. Qe7+ {[%emt 0:00:08]} Qf6 {[%emt 0:00:05]} 31. Qxf6+ {[%emt 0:00:11]} Rxf6 {[%emt 0:00:07]} 32. h4+ {[%emt 0:00:02]} 1-0

[Event "European Online Club-ch-I 2021"]
[Site "Online"]
[Date "2021.03.27"]
[Round "3.4"]
[White "Rapaire, Jean-Michel"]
[Black "Terry, Renato"]
[Result "0-1"]
[ECO "C01"]
[WhiteElo "1739"]
[BlackElo "2504"]
[Annotator "ChessBase"]
[PlyCount "124"]
[EventDate "2021.03.27"]
[EventType "team-tourn"]
[EventCountry "NET"]
[SourceTitle "playchess.com"]
[Source "ChessBase"]
[SourceQuality "1"]
[TimeControl "900+5"]

1. e4 {[%emt 0:00:00]} e6 {[%emt 0:00:03]} 2. d4 {[%emt 0:00:07]} d5 {[%emt 0:00:01]} 3. exd5 {[%emt 0:00:04]} exd5 {[%emt 0:00:02]} 4. Bf4 {[%emt 0:00:01]} Bd6 {[%emt 0:00:06]} 5. Bxd6 {[%emt 0:00:03]} Qxd6 {[%emt 0:00:02]} 6. c3 {[%emt 0:00:01]} Nf6 {[%emt 0:00:06]} 7. Bd3 {[%emt 0:00:05]} O-O {[%emt 0:00:06]} 8. Ne2 {[%emt 0:00:02]} Bg4 {[%emt 0:00:38]} 9. f3 {[%emt 0:00:03]} Bh5 {[%emt 0:00:03]} 10. O-O {[%emt 0:00:09]} c5 {[%emt 0:00:07]} 11. dxc5 {[%emt 0:02:02]} Qxc5+ {[%emt 0:00:04]} 12. Kh1 {[%emt 0:00:15]} Nc6 {[%emt 0:01:21]} 13. Nd2 {[%emt 0:00:09]} Qe3 {[%emt 0:00:57]} 14. Nb3 {[%emt 0:00:22]} Ne5 {[%emt 0:00:48]} 15. Nbc1 {[%emt 0:01:19]} Bg6 {[%emt 0:07:12]} 16. Bxg6 {[%emt 0:00:12]} hxg6 {[%emt 0:00:06]} 17. Nd4 {[%emt 0:01:19]} Rfe8 {[%emt 0:00:44]} 18. Re1 {[%emt 0:00:19]} Qh6 {[%emt 0:00:15]} 19. Nd3 {[%emt 0:00:16]} Nc4 {[%emt 0:00:09]} 20. Qc2 {[%emt 0:02:55]} Nh5 {[%emt 0:00:18]} 21. Qf2 {[%emt 0:00:19]} Nf4 {[%emt 0:00:34]} 22. Nxf4 {[%emt 0:00:11]} Qxf4 {[%emt 0:00:02]} 23. b3 {[%emt 0:00:51]} Ne5 {[%emt 0:00:57]} 24. Rad1 {[%emt 0:00:26]} Rad8 {[%emt 0:00:30]} 25. Ne2 {[%emt 0:00:58]} Qf6 {[%emt 0:00:06]} 26. Nd4 {[%emt 0:00:49]} Rc8 {[%emt 0:00:12]} 27. Ne2 {[%emt 0:00:21]} Ng4 {[%emt 0:00:39]} 28. Qxa7 {[%emt 0:00:38]} Ne3 {[%emt 0:00:04]} 29. Rc1 {[%emt 0:00:39]} Ra8 {[%emt 0:00:29]} 30. Qd4 {[%emt 0:00:09]} Rxa2 {[%emt 0:00:16]} 31. Qxf6 {[%emt 0:00:42]} gxf6 {[%emt 0:00:02]} 32. Nf4 {[%emt 0:00:01]} Kf8 {[%emt 0:00:02]} 33. g3 {[%emt 0:01:33]} Ra3 {[%emt 0:00:29]} 34. Rb1 {[%emt 0:00:21]} f5 {[%emt 0:00:01]} 35. Nd3 {[%emt 0:00:03]} Ra2 {[%emt 0:00:10]} 36. Rb2 {[%emt 0:00:04]} Rxb2 {[%emt 0:00:05]} 37. Nxb2 {[%emt 0:00:01]} Re6 {[%emt 0:00:08]} 38. Kg1 {[%emt 0:00:06]} Nc2 {[%emt 0:00:05]} 39. Rxe6 {[%emt 0:00:08]} fxe6 {[%emt 0:00:01]} 40. Kf2 {[%emt 0:00:04]} Ke7 {[%emt 0:00:09]} 41. Nd3 {[%emt 0:00:05]} Na3 {[%emt 0:00:06]} 42. Ke2 {[%emt 0:00:05]} Nb5 {[%emt 0:00:03]} 43. Kd2 {[%emt 0:00:01]} Kf6 {[%emt 0:00:08]} 44. h3 {[%emt 0:00:07]} e5 {[%emt 0:00:02]} 45. c4 {[%emt 0:00:11]} dxc4 {[%emt 0:00:09]} 46. bxc4 {[%emt 0:00:02]} Nd4 {[%emt 0:00:02]} 47. Ke3 {[%emt 0:00:07]} Nc2+ {[%emt 0:00:06]} 48. Kd2 {[%emt 0:00:04]} Nd4 {[%emt 0:00:01]} 49. Ke3 {[%emt 0:00:01]} Ne6 {[%emt 0:00:01]} 50. Nb4 {[%emt 0:00:11]} Nc7 {[%emt 0:00:06]} 51. Nd5+ {[%emt 0:00:06]} Nxd5+ {[%emt 0:00:02]} 52. cxd5 {[%emt 0:00:01]} Ke7 {[%emt 0:00:03]} 53. h4 {[%emt 0:00:06]} Kd6 {[%emt 0:00:14]} 54. g4 {[%emt 0:00:03]} Kxd5 {[%emt 0:00:05]} 55. gxf5 {[%emt 0:00:06]} gxf5 {[%emt 0:00:02]} 56. h5 {[%emt 0:00:06]} Ke6 {[%emt 0:00:02]} 57. Kd3 {[%emt 0:00:03]} Kf6 {[%emt 0:00:04]} 58. Kc4 {[%emt 0:00:01]} Kg5 {[%emt 0:00:08]} 59. h6 {[%emt 0:00:07]} Kxh6 {[%emt 0:00:02]} 60. Kd5 {[%emt 0:00:00]} Kg5 {[%emt 0:00:04]} 61. Kxe5 {[%emt 0:00:02]} b5 {[%emt 0:00:03]} 62. f4+ {[%emt 0:00:02]} Kg4 {[%emt 0:00:02]} 0-1

[Event "European Online Club-ch-I 2021"]
[Site "Online"]
[Date "2021.03.27"]
[Round "3.5"]
[White "Saric, Ivan"]
[Black "Moranda, Wojciech"]
[Result "1-0"]
[ECO "B47"]
[WhiteElo "2648"]
[BlackElo "2618"]
[Annotator "ChessBase"]
[PlyCount "103"]
[EventDate "2021.03.27"]
[EventType "team-tourn"]
[EventCountry "NET"]
[SourceTitle "playchess.com"]
[Source "ChessBase"]
[SourceQuality "1"]
[TimeControl "900+5"]

1. e4 {[%emt 0:00:00]} c5 {[%emt 0:00:03]} 2. Nf3 {[%emt 0:00:03]} e6 {[%emt 0:00:01]} 3. d4 {[%emt 0:00:02]} cxd4 {[%emt 0:00:01]} 4. Nxd4 {[%emt 0:00:01]} Nc6 {[%emt 0:00:02]} 5. Nc3 {[%emt 0:00:02]} Qc7 {[%emt 0:00:01]} 6. g3 {[%emt 0:00:20]} a6 {[%emt 0:00:02]} 7. Bg2 {[%emt 0:00:02]} Nf6 {[%emt 0:00:02]} 8. O-O {[%emt 0:00:02]} h5 {[%emt 0:00:01]} 9. Nxc6 {[%emt 0:00:26]} dxc6 {[%emt 0:00:10]} 10. e5 {[%emt 0:00:10]} Qxe5 {[%emt 0:00:11]} 11. Bf4 {[%emt 0:00:03]} Qa5 {[%emt 0:00:06]} 12. Re1 {[%emt 0:00:01]} Be7 {[%emt 0:00:22]} 13. Re5 {[%emt 0:00:22]} Qd8 {[%emt 0:01:00]} 14. Qe2 {[%emt 0:00:11]} Bd7 {[%emt 0:00:29]} 15. Rd1 {[%emt 0:00:24]} Ng4 {[%emt 0:01:54]} 16. Ne4 {[%emt 0:03:17]} Nxe5 {[%emt 0:01:54]} 17. Bxe5 {[%emt 0:00:03]} f6 {[%emt 0:00:28]} 18. Bd6 {[%emt 0:00:14]} O-O {[%emt 0:03:27]} 19. Nc5 {[%emt 0:03:12]} Bxd6 {[%emt 0:00:19]} 20. Rxd6 {[%emt 0:00:03]} Qe7 {[%emt 0:00:02]} 21. Rxd7 {[%emt 0:00:56]} Qxc5 {[%emt 0:00:03]} 22. Rxb7 {[%emt 0:00:04]} Rad8 {[%emt 0:02:47]} 23. Qxe6+ {[%emt 0:01:22]} Kh8 {[%emt 0:00:02]} 24. Be4 {[%emt 0:00:10]} Rd2 {[%emt 0:00:50]} 25. Qf5 {[%emt 0:00:03]} Qxf5 {[%emt 0:00:19]} 26. Bxf5 {[%emt 0:00:02]} Rd5 {[%emt 0:00:22]} 27. Bd3 {[%emt 0:00:17]} a5 {[%emt 0:00:02]} 28. Rc7 {[%emt 0:00:08]} Rc5 {[%emt 0:00:05]} 29. h4 {[%emt 0:00:07]} Rb8 {[%emt 0:00:08]} 30. b3 {[%emt 0:00:04]} Rd8 {[%emt 0:00:22]} 31. Kg2 {[%emt 0:00:14]} Kg8 {[%emt 0:00:05]} 32. Bg6 {[%emt 0:00:16]} Rf8 {[%emt 0:00:16]} 33. Be4 {[%emt 0:01:18]} Re8 {[%emt 0:00:40]} 34. Bg6 {[%emt 0:00:42]} Rf8 {[%emt 0:00:17]} 35. c4 {[%emt 0:00:19]} f5 {[%emt 0:00:08]} 36. Bxh5 {[%emt 0:00:08]} f4 {[%emt 0:00:01]} 37. Bf3 {[%emt 0:00:02]} fxg3 {[%emt 0:00:02]} 38. fxg3 {[%emt 0:00:01]} Rf6 {[%emt 0:00:01]} 39. g4 {[%emt 0:00:33]} Kf8 {[%emt 0:00:05]} 40. g5 {[%emt 0:00:08]} Rd6 {[%emt 0:00:09]} 41. Rc8+ {[%emt 0:00:04]} Ke7 {[%emt 0:00:02]} 42. Rc7+ {[%emt 0:00:06]} Rd7 {[%emt 0:00:04]} 43. Rxd7+ {[%emt 0:00:57]} Kxd7 {[%emt 0:00:02]} 44. Kg3 {[%emt 0:00:01]} Re5 {[%emt 0:00:09]} 45. Kf4 {[%emt 0:00:03]} Re1 {[%emt 0:00:02]} 46. h5 {[%emt 0:00:01]} Kd6 {[%emt 0:00:28]} 47. h6 {[%emt 0:00:11]} gxh6 {[%emt 0:00:19]} 48. gxh6 {[%emt 0:00:01]} Re6 {[%emt 0:00:02]} 49. h7 {[%emt 0:00:20]} Rh6 {[%emt 0:00:02]} 50. Be4 {[%emt 0:00:02]} Ke6 {[%emt 0:00:04]} 51. Kg5 {[%emt 0:00:07]} Rh2 {[%emt 0:00:06]} 52. Bg6 {[%emt 0:00:06]} 1-0

[Event "European Online Club-ch-I 2021"]
[Site "Online"]
[Date "2021.03.27"]
[Round "3.6"]
[White "Socko, Bartosz"]
[Black "Heberla, Bartlomiej"]
[Result "1-0"]
[ECO "E06"]
[WhiteElo "2618"]
[BlackElo "2556"]
[Annotator "ChessBase"]
[PlyCount "79"]
[EventDate "2021.03.27"]
[EventType "team-tourn"]
[EventCountry "NET"]
[SourceTitle "playchess.com"]
[Source "ChessBase"]
[SourceQuality "1"]
[TimeControl "900+5"]

1. d4 {[%emt 0:00:00]} d5 {[%emt 0:00:04]} 2. Nf3 {[%emt 0:00:02]} e6 {[%emt 0:00:01]} 3. c4 {[%emt 0:00:02]} a6 {[%emt 0:00:02]} 4. Nbd2 {[%emt 0:00:04]} Nf6 {[%emt 0:00:02]} 5. g3 {[%emt 0:00:02]} c5 {[%emt 0:00:01]} 6. Bg2 {[%emt 0:00:13]} Nc6 {[%emt 0:00:02]} 7. dxc5 {[%emt 0:00:18]} Bxc5 {[%emt 0:00:02]} 8. O-O {[%emt 0:00:01]} O-O {[%emt 0:00:03]} 9. a3 {[%emt 0:00:06]} a5 {[%emt 0:00:30]} 10. cxd5 {[%emt 0:00:21]} exd5 {[%emt 0:00:06]} 11. Nb3 {[%emt 0:00:02]} Bb6 {[%emt 0:00:02]} 12. Nbd4 {[%emt 0:00:08]} Nxd4 {[%emt 0:00:42]} 13. Nxd4 {[%emt 0:00:02]} Re8 {[%emt 0:00:01]} 14. Be3 {[%emt 0:00:35]} Ng4 {[%emt 0:00:40]} 15. Bf4 {[%emt 0:00:05]} Qf6 {[%emt 0:00:17]} 16. Nf3 {[%emt 0:00:05]} d4 {[%emt 0:04:04]} 17. h3 {[%emt 0:00:49]} Nh6 {[%emt 0:00:03]} 18. Qd2 {[%emt 0:00:01]} Nf5 {[%emt 0:00:07]} 19. Rad1 {[%emt 0:00:06]} h6 {[%emt 0:00:54]} 20. g4 {[%emt 0:01:01]} Nh4 {[%emt 0:02:42]} 21. Nxh4 {[%emt 0:00:23]} Qxh4 {[%emt 0:00:04]} 22. Qd3 {[%emt 0:00:26]} Qf6 {[%emt 0:00:21]} 23. Bg3 {[%emt 0:00:33]} h5 {[%emt 0:00:27]} 24. Qb5 {[%emt 0:01:00]} Qd8 {[%emt 0:01:20]} 25. Bh4 {[%emt 0:00:37]} f6 {[%emt 0:00:31]} 26. Qxh5 {[%emt 0:00:26]} Re5 {[%emt 0:00:47]} 27. Qxe5 {[%emt 0:00:06]} fxe5 {[%emt 0:00:06]} 28. Bxd8 {[%emt 0:00:00]} Bxd8 {[%emt 0:00:02]} 29. Bd5+ {[%emt 0:00:38]} Kh7 {[%emt 0:00:10]} 30. f4 {[%emt 0:00:07]} exf4 {[%emt 0:01:17]} 31. Rxf4 {[%emt 0:00:00]} Bf6 {[%emt 0:00:10]} 32. g5 {[%emt 0:00:49]} Bxg5 {[%emt 0:00:08]} 33. Rf8 {[%emt 0:00:04]} Be3+ {[%emt 0:00:54]} 34. Kh2 {[%emt 0:00:03]} g5 {[%emt 0:00:02]} 35. Rdf1 {[%emt 0:00:46]} Bf4+ {[%emt 0:00:16]} 36. R1xf4 {[%emt 0:00:28]} gxf4 {[%emt 0:00:02]} 37. Be6 {[%emt 0:00:02]} f3 {[%emt 0:00:01]} 38. exf3 {[%emt 0:00:17]} d3 {[%emt 0:00:01]} 39. Rxc8 {[%emt 0:00:22]} d2 {[%emt 0:00:14]} 40. Rc7+ {[%emt 0:00:01]} 1-0

[Event "European Online Club-ch-I 2021"]
[Site "Online"]
[Date "2021.03.27"]
[Round "3.7"]
[White "Polak, Tomas"]
[Black "Tomczak, Jacek"]
[Result "1/2-1/2"]
[ECO "D85"]
[WhiteElo "2553"]
[BlackElo "2610"]
[Annotator "ChessBase"]
[PlyCount "109"]
[EventDate "2021.03.27"]
[EventType "team-tourn"]
[EventCountry "NET"]
[SourceTitle "playchess.com"]
[Source "ChessBase"]
[SourceQuality "1"]
[TimeControl "900+5"]

1. d4 {[%emt 0:00:00]} Nf6 {[%emt 0:00:03]} 2. c4 {[%emt 0:00:03]} g6 {[%emt 0:00:02]} 3. Nc3 {[%emt 0:00:01]} d5 {[%emt 0:00:02]} 4. cxd5 {[%emt 0:00:02]} Nxd5 {[%emt 0:00:02]} 5. e4 {[%emt 0:00:02]} Nxc3 {[%emt 0:00:02]} 6. bxc3 {[%emt 0:00:01]} Bg7 {[%emt 0:00:01]} 7. Nf3 {[%emt 0:00:03]} c5 {[%emt 0:00:03]} 8. Rb1 {[%emt 0:00:02]} O-O {[%emt 0:00:04]} 9. Be2 {[%emt 0:00:02]} b6 {[%emt 0:00:18]} 10. O-O {[%emt 0:00:05]} e6 {[%emt 0:00:05]} 11. Bg5 {[%emt 0:00:52]} Qc7 {[%emt 0:00:04]} 12. Qd2 {[%emt 0:00:24]} Bb7 {[%emt 0:00:08]} 13. d5 {[%emt 0:00:44]} exd5 {[%emt 0:00:18]} 14. exd5 {[%emt 0:00:02]} Qd6 {[%emt 0:00:01]} 15. c4 {[%emt 0:00:12]} Nd7 {[%emt 0:00:02]} 16. Rfe1 {[%emt 0:00:15]} Rfe8 {[%emt 0:00:05]} 17. a4 {[%emt 0:00:40]} Ne5 {[%emt 0:00:33]} 18. a5 {[%emt 0:00:25]} Ba6 {[%emt 0:00:11]} 19. axb6 {[%emt 0:00:17]} axb6 {[%emt 0:00:03]} 20. Bf4 {[%emt 0:01:29]} Nxf3+ {[%emt 0:00:22]} 21. Bxf3 {[%emt 0:00:06]} Be5 {[%emt 0:00:02]} 22. Bxe5 {[%emt 0:01:28]} Rxe5 {[%emt 0:00:04]} 23. Qc3 {[%emt 0:02:26]} Rxe1+ {[%emt 0:03:33]} 24. Rxe1 {[%emt 0:00:09]} b5 {[%emt 0:00:08]} 25. cxb5 {[%emt 0:00:20]} Bxb5 {[%emt 0:00:01]} 26. h4 {[%emt 0:00:33]} h5 {[%emt 0:02:09]} 27. g3 {[%emt 0:01:24]} Bd7 {[%emt 0:00:20]} 28. Kg2 {[%emt 0:01:36]} Re8 {[%emt 0:01:41]} 29. Rxe8+ {[%emt 0:00:27]} Bxe8 {[%emt 0:00:01]} 30. Qe3 {[%emt 0:00:13]} Bd7 {[%emt 0:00:19]} 31. Qc3 {[%emt 0:00:04]} Bf5 {[%emt 0:00:09]} 32. Qc4 {[%emt 0:00:17]} Kf8 {[%emt 0:00:12]} 33. Qa4 {[%emt 0:00:09]} Ke7 {[%emt 0:00:20]} 34. Qa7+ {[%emt 0:00:05]} Bd7 {[%emt 0:00:07]} 35. Qa5 {[%emt 0:00:17]} Bf5 {[%emt 0:00:06]} 36. Qa7+ {[%emt 0:00:05]} Kf8 {[%emt 0:00:11]} 37. Qa4 {[%emt 0:00:08]} Bd3 {[%emt 0:00:12]} 38. Qa8+ {[%emt 0:00:10]} Ke7 {[%emt 0:00:23]} 39. Qa7+ {[%emt 0:00:05]} Kf6 {[%emt 0:00:09]} 40. Qa3 {[%emt 0:00:10]} Bf5 {[%emt 0:00:05]} 41. Qc3+ {[%emt 0:00:07]} Ke7 {[%emt 0:00:02]} 42. Qe3+ {[%emt 0:00:03]} Kf8 {[%emt 0:00:10]} 43. Qc3 {[%emt 0:00:05]} Kg8 {[%emt 0:00:06]} 44. Qa3 {[%emt 0:00:07]} Bd7 {[%emt 0:00:29]} 45. Qc3 {[%emt 0:00:09]} Bb5 {[%emt 0:00:53]} 46. Qa5 {[%emt 0:00:22]} Be8 {[%emt 0:01:20]} 47. Qc3 {[%emt 0:00:06]} Bd7 {[%emt 0:00:06]} 48. Qd3 {[%emt 0:00:10]} Kg7 {[%emt 0:00:08]} 49. Qc3+ {[%emt 0:00:03]} Kh7 {[%emt 0:00:09]} 50. Qa3 {[%emt 0:00:04]} Qb6 {[%emt 0:00:25]} 51. Qc3 {[%emt 0:00:07]} Qd6 {[%emt 0:00:35]} 52. Qa3 {[%emt 0:00:04]} Kg7 {[%emt 0:00:14]} 53. Qc3+ {[%emt 0:00:04]} Kg8 {[%emt 0:00:27]} 54. Qa3 {[%emt 0:00:05]} Kg7 {[%emt 0:00:01]} 55. Qc3+ {[%emt 0:00:04]} 1/2-1/2

[Event "European Online Club-ch-I 2021"]
[Site "Online"]
[Date "2021.03.27"]
[Round "3.8"]
[White "Klekowski, Maciej"]
[Black "Nayhebaver, Martin"]
[Result "1-0"]
[ECO "A14"]
[WhiteElo "2510"]
[BlackElo "2485"]
[Annotator "ChessBase"]
[PlyCount "61"]
[EventDate "2021.03.27"]
[EventType "team-tourn"]
[EventCountry "NET"]
[SourceTitle "playchess.com"]
[Source "ChessBase"]
[SourceQuality "1"]
[TimeControl "900+5"]

1. c4 {[%emt 0:00:00]} e6 {[%emt 0:00:14]} 2. Nf3 {[%emt 0:00:03]} Nf6 {[%emt 0:00:03]} 3. g3 {[%emt 0:00:03]} Be7 {[%emt 0:00:19]} 4. Bg2 {[%emt 0:00:01]} O-O {[%emt 0:00:02]} 5. O-O {[%emt 0:00:04]} d5 {[%emt 0:00:02]} 6. b3 {[%emt 0:00:07]} b6 {[%emt 0:00:12]} 7. Bb2 {[%emt 0:00:07]} Bb7 {[%emt 0:00:02]} 8. e3 {[%emt 0:00:12]} c5 {[%emt 0:00:27]} 9. Nc3 {[%emt 0:00:12]} dxc4 {[%emt 0:01:08]} 10. bxc4 {[%emt 0:00:00]} Nc6 {[%emt 0:00:03]} 11. Qe2 {[%emt 0:00:11]} Qd7 {[%emt 0:00:14]} 12. Rfd1 {[%emt 0:00:08]} Rac8 {[%emt 0:01:06]} 13. Rac1 {[%emt 0:00:34]} Rfd8 {[%emt 0:01:20]} 14. d4 {[%emt 0:01:28]} cxd4 {[%emt 0:01:08]} 15. exd4 {[%emt 0:00:00]} Na5 {[%emt 0:00:43]} 16. Ne5 {[%emt 0:00:11]} Qe8 {[%emt 0:01:56]} 17. Bxb7 {[%emt 0:02:26]} Nxb7 {[%emt 0:00:03]} 18. d5 {[%emt 0:00:01]} Na5 {[%emt 0:02:29]} 19. dxe6 {[%emt 0:00:39]} fxe6 {[%emt 0:00:24]} 20. Rxd8 {[%emt 0:00:57]} Qxd8 {[%emt 0:00:55]} 21. Nb5 {[%emt 0:00:29]} a6 {[%emt 0:02:48]} 22. Rd1 {[%emt 0:00:04]} Qe8 {[%emt 0:00:18]} 23. Nd6 {[%emt 0:00:01]} Bxd6 {[%emt 0:00:09]} 24. Rxd6 {[%emt 0:00:00]} b5 {[%emt 0:00:29]} 25. Rxa6 {[%emt 0:02:25]} Nxc4 {[%emt 0:00:06]} 26. Nxc4 {[%emt 0:00:02]} bxc4 {[%emt 0:00:03]} 27. Rxe6 {[%emt 0:00:05]} Qg6 {[%emt 0:00:09]} 28. Rxf6 {[%emt 0:00:18]} gxf6 {[%emt 0:00:17]} 29. Qe6+ {[%emt 0:00:02]} Kg7 {[%emt 0:00:04]} 30. Qd7+ {[%emt 0:00:01]} Kh6 {[%emt 0:00:05]} 31. Bc1+ {[%emt 0:00:01]} 1-0

[Event "European Online Club-ch-I 2021"]
[Site "Online"]
[Date "2021.03.27"]
[Round "3.9"]
[White "Iskandarov, Misratdin"]
[Black "Stephan, Victor"]
[Result "0-1"]
[ECO "B81"]
[WhiteElo "2535"]
[BlackElo "2430"]
[Annotator "ChessBase"]
[PlyCount "66"]
[EventDate "2021.03.27"]
[EventType "team-tourn"]
[EventCountry "NET"]
[SourceTitle "playchess.com"]
[Source "ChessBase"]
[SourceQuality "1"]
[TimeControl "900+5"]

1. e4 {[%emt 0:00:00]} c5 {[%emt 0:00:03]} 2. Nf3 {[%emt 0:00:03]} d6 {[%emt 0:00:02]} 3. d4 {[%emt 0:00:10]} cxd4 {[%emt 0:00:02]} 4. Nxd4 {[%emt 0:00:02]} Nf6 {[%emt 0:00:02]} 5. Nc3 {[%emt 0:00:03]} a6 {[%emt 0:00:01]} 6. h3 {[%emt 0:00:12]} e6 {[%emt 0:00:03]} 7. g4 {[%emt 0:00:03]} Be7 {[%emt 0:00:01]} 8. Bg2 {[%emt 0:00:02]} Nfd7 {[%emt 0:00:23]} 9. O-O {[%emt 0:00:09]} Nc6 {[%emt 0:00:11]} 10. Nxc6 {[%emt 0:00:19]} bxc6 {[%emt 0:00:03]} 11. f4 {[%emt 0:00:02]} O-O {[%emt 0:00:54]} 12. Ne2 {[%emt 0:00:18]} d5 {[%emt 0:00:14]} 13. e5 {[%emt 0:01:30]} a5 {[%emt 0:00:33]} 14. Nd4 {[%emt 0:01:47]} Ba6 {[%emt 0:00:41]} 15. Rf3 {[%emt 0:01:26]} Qb6 {[%emt 0:01:16]} 16. Kh1 {[%emt 0:00:57]} c5 {[%emt 0:00:37]} 17. Ne2 {[%emt 0:01:34]} f6 {[%emt 0:00:03]} 18. exf6 {[%emt 0:00:26]} Nxf6 {[%emt 0:00:02]} 19. Ng3 {[%emt 0:00:13]} Rad8 {[%emt 0:00:24]} 20. Qe1 {[%emt 0:00:06]} d4 {[%emt 0:01:07]} 21. Bd2 {[%emt 0:00:54]} Qd6 {[%emt 0:01:08]} 22. Bxa5 {[%emt 0:00:27]} Rb8 {[%emt 0:00:02]} 23. Bc7 {[%emt 0:00:19]} Qxc7 {[%emt 0:00:15]} 24. Qxe6+ {[%emt 0:00:02]} Kh8 {[%emt 0:00:19]} 25. Qxa6 {[%emt 0:00:02]} Rxb2 {[%emt 0:00:01]} 26. Qc4 {[%emt 0:00:14]} Rfb8 {[%emt 0:01:19]} 27. g5 {[%emt 0:00:31]} Ne8 {[%emt 0:00:24]} 28. Re1 {[%emt 0:01:05]} Nd6 {[%emt 0:00:15]} 29. Qe2 {[%emt 0:00:23]} Bf8 {[%emt 0:00:19]} 30. Rb3 {[%emt 0:00:19]} Rxa2 {[%emt 0:00:28]} 31. Rxb8 {[%emt 0:00:03]} Qxb8 {[%emt 0:00:04]} 32. Bd5 {[%emt 0:00:02]} Ra7 {[%emt 0:00:53]} 33. Qe8 {[%emt 0:00:14]} Nxe8 {[%emt 0:00:07]} 0-1